bitfinex/quotes_ETHUSD_20260304
["timestamp","ask_amount","ask_price","bid_price","bid_amount"]
[1772583415744,2.35827178,1985.9,1985.3,0.46893838]
[1772583416038,2.35827178,1985.9,1985.4,0.46893838]
[1772583416238,3.61715211,1985.9,1985.1,2.33224194]
[1772583416460,3.61715211,1985.9,1985.3,1.25925552]
[1772583416935,1.25885395,1986.0,1985.3,1.25925552]
[1772583417266,1.25885395,1986.0,1985.3,3.59149746]
[1772583417442,1.25885395,1986.0,1985.4,0.46624626]
[1772583417645,4.96071776,1986.2,1985.3,3.59149746]
[1772583417646,9.9955586,1986.2,1985.3,3.59149746]
[1772583417981,1.25879048,1986.1,1985.4,0.46619928]
[1772583418262,1.25879048,1986.1,1985.4,2.33224194]
[1772583418564,2.35827178,1986.3,1985.4,1.25914934]
[1772583418863,2.35827178,1986.3,1985.4,2.90340576]
[1772583419068,2.35827178,1986.3,1985.5,2.33224194]
[1772583419843,0.001,1985.8,1985.5,2.33224194]
[1772583420045,2.35827178,1986.3,1985.5,2.33224194]
[1772583420445,1.25868492,1986.2,1985.6,1.25906526]
[1772583420668,7.39279409,1986.3,1985.7,1.64425642]
[1772583420669,3.61690421,1986.3,1985.7,1.64425642]
[1772583420842,3.61690421,1986.3,1985.5,2.9033467]
[1772583420843,2.35827178,1986.2,1985.5,2.9033467]
[1772583421246,1.25861296,1986.4,1985.6,2.33224194]
[1772583421460,1.25861296,1986.4,1985.5,2.9033467]
[1772583421461,2.35827178,1986.3,1985.5,2.9033467]
[1772583422380,2.35827178,1986.3,1985.6,2.33224194]
[1772583422571,2.35827178,1986.5,1985.8,1.64425642]
[1772583422783,2.35827178,1986.5,1985.6,2.33224194]
[1772583423854,2.35827178,1986.5,1985.4,1.25915241]
[1772583424282,2.35827178,1986.5,1985.4,3.59139435]
[1772583424492,2.35827178,1986.3,1985.6,1.25906526]
[1772583424851,2.35827178,1986.3,1985.5,7.36850301]
[1772583424852,2.35827178,1986.3,1985.4,1.2591407]
[1772583426582,2.35827178,1986.3,1985.3,7.36920004]
[1772583426583,2.35827178,1986.1,1985.2,7.36926405]
[1772583427087,2.35827178,1986.1,1985.3,2.33224194]
[1772583428990,3.61706549,1986.1,1985.4,1.2591921]
[1772583429674,2.35827178,1986.1,1985.4,3.59143404]
[1772583429876,2.35827178,1986.3,1985.6,2.33224194]
[1772583431390,3.61694243,1986.3,1985.7,1.25900186]
[1772583431791,2.35827178,1986.5,1985.8,2.33224194]
[1772583432261,0.002,1986.4,1985.8,2.33224194]
[1772583432663,2.36027178,1986.4,1985.8,2.33224194]
[1772583433572,2.35827178,1986.3,1985.7,3.871]
[1772583434298,2.35827178,1986.3,1985.7,5.12999996]
[1772583434478,2.35827178,1986.3,1985.7,3.871]
[1772583435210,2.35827178,1986.3,1985.5,0.001]
[1772583435622,2.35827178,1986.1,1985.5,0.001]
[1772583437817,2.35827178,1985.9,1985.5,0.001]
[1772583439283,2.66258964,1985.8,1985.5,0.001]
[1772583439805,2.66258964,1985.6,1984.7,2.61624515]
[1772583440120,5.03600745,1986.0,1984.6,5.03870402]
[1772583440121,2.66258964,1986.3,1985.6,2.61624515]
[1772583440496,2.66258964,1986.3,1985.7,2.61824515]
[1772583440689,2.66258964,1986.3,1985.7,2.61624515]
[1772583441309,2.66258964,1986.3,1985.8,0.46944576]
[1772583441510,2.60244598,1986.8,1985.8,2.61824515]
[1772583441727,0.04,2203.6,1986.2,2.61624515]
[1772583441728,2.66258964,1987.1,1986.2,2.61624515]
[1772583442232,2.66258964,1987.1,1986.3,0.46850008]
[1772583442405,2.66258964,1987.1,1986.4,0.46850008]
[1772583442605,2.66258964,1987.1,1986.3,2.61624515]
[1772583442907,2.66258964,1987.1,1986.4,0.46850008]
[1772583443129,2.66258964,1987.1,1986.3,2.61624515]
[1772583443429,2.66258964,1987.1,1986.4,0.46842074]
[1772583443629,2.66258964,1987.1,1986.5,0.46842074]
[1772583443930,2.66258964,1987.1,1986.6,1.72685223]
[1772583444133,2.66258964,1987.0,1986.0,1.25881168]
[1772583444431,1.25812981,1987.1,1985.9,1.25882449]
[1772583444432,2.66258964,1986.8,1985.9,1.25882449]
[1772583444729,2.66258964,1986.8,1986.0,0.002]
[1772583445517,2.006,1986.8,1986.0,0.002]
[1772583445821,2.66258964,1986.6,1986.0,0.002]
[1772583446806,2.66258964,1986.6,1985.9,3.87506964]
[1772583447007,2.66258964,1986.6,1986.0,0.002]
[1772583447803,2.66258964,1986.5,1986.0,0.002]
[1772583450343,2.66258964,1986.4,1986.0,0.002]
[1772583450747,2.66258964,1986.4,1985.7,1.25896861]
[1772583451045,2.66258964,1986.4,1985.7,3.87521376]
[1772583452761,1.25862155,1986.3,1985.7,3.87521376]
[1772583453060,3.92121119,1986.3,1985.7,3.87521376]
[1772583453462,2.66258964,1986.2,1985.7,3.87521376]
[1772583453664,2.66258964,1986.2,1985.7,1.25896861]
[1772583454540,2.66258964,1986.2,1985.7,3.87521376]
[1772583454755,3.92119524,1986.4,1985.7,3.87521376]
[1772583455154,1.2586056,1986.4,1985.7,3.87521376]
[1772583455359,2.66258964,1986.3,1985.7,3.87521376]
[1772583457146,2.66258964,1986.2,1985.7,3.87521376]
[1772583457874,2.61258964,1986.2,1985.7,3.87521376]
[1772583459283,2.66258964,1986.1,1985.5,3.871]
[1772583459578,2.66258964,1986.1,1985.5,5.13011823]
[1772583460068,2.66258964,1986.0,1985.5,5.13011823]
[1772583460249,2.66258964,1986.5,1985.6,2.61624515]
[1772583461368,0.002,1986.2,1985.8,0.001]
[1772583461953,2.66458964,1986.2,1985.8,0.001]
[1772583462162,2.66458964,1986.2,1985.5,1.26011921]
[1772583462386,2.66258964,1986.1,1985.5,1.26011921]
[1772583462590,2.66258964,1985.9,1985.5,0.001]
[1772583464475,2.66258964,1986.0,1985.5,0.001]
[1772583466584,1.25887506,1985.9,1985.5,0.001]
[1772583466883,3.9214647,1985.9,1985.5,0.001]
[1772583467582,2.66258964,1985.8,1985.5,0.001]
[1772583468587,1.25900186,1985.7,1985.5,0.001]
[1772583469561,1.25898969,1985.8,1985.5,0.001]
[1772583469760,5.76363558,1985.9,1985.5,0.001]
[1772583470268,3.74463558,1985.9,1985.5,0.001]
[1772583471559,3.74452792,1986.1,1985.5,2.47639674]
[1772583471774,5.76352792,1986.1,1985.5,2.47639674]
[1772583472379,0.002,1986.2,1985.6,2.47539674]
[1772583472574,0.002,1986.2,1985.7,1.25900186]
[1772583472774,0.002,1986.2,1985.8,2.47539674]
[1772583474601,0.002,1986.2,1986.0,2.47539674]
[1772583474974,1.25843395,1986.6,1986.0,2.47539674]
[1772583475808,0.002,1986.1,1986.0,2.47539674]
[1772583476001,2.48572191,1986.5,1986.0,2.47539674]
[1772583476388,0.002,1986.3,1986.0,2.47539674]
[1772583477003,0.002,1986.3,1986.1,3.73414504]
[1772583477177,1.25847986,1986.6,1986.1,3.73414504]
[1772583477373,3.74414311,1986.7,1986.1,3.73414504]
[1772583478907,2.48572191,1986.6,1986.1,2.47539674]
[1772583479412,2.48572191,1986.6,1986.1,1.25874788]
[1772583480095,2.48572191,1986.6,1986.0,3.73420156]
[1772583480313,2.48572191,1986.6,1985.9,1.25882906]
[1772583480496,2.48572191,1986.6,1985.7,1.25897226]
[1772583480811,2.48572191,1986.6,1985.7,3.734369]
[1772583481018,2.48572191,1986.6,1985.8,2.47539674]
[1772583481188,2.48572191,1986.4,1985.8,3.7343167]
[1772583482115,2.48572191,1986.4,1985.7,3.7343467]
[1772583482428,2.48572191,1986.4,1985.6,0.001]
[1772583483285,2.48572191,1986.2,1985.6,0.001]
[1772583483485,2.48572191,1986.1,1985.6,0.001]
[1772583483687,2.48572191,1986.0,1985.6,0.001]
[1772583486085,1.25887506,1985.9,1985.6,0.001]
[1772583486817,2.48572191,1986.4,1985.7,2.47539674]
[1772583488552,2.48572191,1986.6,1985.9,2.47539674]
[1772583488736,1.25842714,1986.7,1985.9,2.47539674]
[1772583489150,3.74414905,1986.7,1985.9,2.47539674]
[1772583490230,0.002,1986.3,1985.9,2.47539674]
[1772583490728,0.002,1986.3,1986.1,2.47539674]
[1772583490932,0.002,1986.3,1986.0,1.25881168]
[1772583492246,0.002,1986.3,1985.9,3.73422147]
[1772583492446,2.48772191,1986.3,1985.8,1.25890652]
[1772583492652,2.48772191,1986.3,1985.8,3.73430326]
[1772583492853,2.48772191,1986.3,1985.9,2.47539674]
[1772583492854,0.002,1986.3,1985.9,2.47539674]
[1772583493357,0.002,1986.3,1985.2,0.001]
[1772583493358,2.48572191,1985.9,1985.2,0.001]
[1772583493534,2.48572191,1985.5,1984.5,1.25976316]
[1772583493732,1.77785968,1984.8,1984.4,0.004]
[1772583494053,2.48572191,1985.1,1984.4,0.004]
[1772583495238,1.25944584,1985.0,1984.4,0.004]
[1772583496468,3.74516775,1985.0,1984.4,0.004]
[1772583497327,2.48572191,1985.0,1984.4,0.004]
[1772583497767,2.48572191,1985.3,1984.4,2.47939674]
[1772583497966,3.74499294,1985.3,1984.4,2.47939674]
[1772583498681,1.25927395,1985.3,1984.4,2.47939674]
[1772583499261,5.03663357,1985.5,1984.5,1.25976316]
[1772583499456,5.03663357,1985.5,1984.6,2.74616556]
[1772583499861,7.7073884,1985.5,1984.6,2.74616556]
[1772583500664,2.67075483,1985.4,1984.6,2.74616556]
[1772583501650,3.92987097,1985.6,1984.8,2.74616556]
[1772583501954,3.92987097,1985.6,1984.9,4.59216556]
[1772583502473,3.92982902,1985.6,1984.9,4.59216556]
[1772583502649,2.67075483,1985.5,1984.9,1.846]
[1772583504356,2.67075483,1985.3,1984.9,1.846]
[1772583506466,3.93007379,1985.2,1984.9,1.85]
[1772583506676,3.93007379,1985.2,1984.9,1.846]
[1772583508561,1.25931896,1985.2,1985.0,0.004]
[1772583510085,1.25931896,1985.2,1984.9,1.8237]
[1772583510287,3.92995873,1985.4,1984.9,5.82936533]
[1772583513305,2.67075483,1985.3,1984.9,0.25638167]
[1772583513602,2.67075483,1985.3,1983.3,0.0011]
[1772583513603,2.67075483,1984.8,1983.3,0.0011]
[1772583513767,2.67075483,1984.1,1983.3,0.0011]
[1772583513967,2.67075483,1984.1,1983.3,1.26161713]
[1772583514492,2.67075483,1984.1,1983.3,0.0011]
[1772583514687,1.26008064,1984.0,1983.3,0.0011]
[1772583514882,3.93083547,1984.0,1983.3,0.0011]
[1772583515865,3.93083547,1984.0,1983.3,2.74726556]
[1772583516364,5.04032258,1984.1,1983.4,4.58116556]
[1772583516365,1.26006165,1984.1,1983.4,4.58116556]
[1772583516869,2.67075483,1984.3,1983.4,4.58116556]
[1772583516870,3.93069168,1984.3,1983.6,2.74616556]
[1772583517068,1.25993685,1984.3,1983.6,2.74616556]
[1772583517266,2.023,1984.7,1983.6,2.74616556]
[1772583517267,2.67075483,1984.7,1983.6,2.74616556]
[1772583517475,4.02251203,1984.9,1983.7,2.74616556]
[1772583517795,4.02251203,1984.9,1984.3,0.0011]
[1772583519598,2.67075483,1984.8,1984.3,0.0011]
[1772583519790,2.67075483,1984.8,1984.2,0.0011]
[1772583521597,3.93039104,1984.7,1984.2,0.0011]
[1772583521901,2.67075483,1984.6,1984.2,0.0011]
[1772583522090,1.25963621,1984.7,1984.2,0.0011]
[1772583523570,2.67075483,1984.7,1984.2,0.0011]
[1772583525596,2.67075483,1984.5,1984.2,0.0011]
[1772583527574,1.25982664,1984.4,1984.2,0.0011]
[1772583529883,1.25969968,1984.6,1984.3,0.0011]
[1772583530203,4.05969424,1984.6,1984.3,0.0011]
[1772583530404,2.79999456,1984.5,1984.0,0.0011]
[1772583531878,1.25969968,1984.6,1984.0,2.80417938]
[1772583532282,7.34034721,1984.9,1984.1,2.80307938]
[1772583532283,5.03818563,1984.9,1984.1,2.80307938]
[1772583532620,1.25944584,1985.1,1984.2,2.80307938]
[1772583532994,1.25944584,1985.1,1984.2,2.71087938]
[1772583534111,1.25944584,1985.1,1984.4,4.06290602]
[1772583535199,1.25944584,1985.1,1984.4,1.25982664]
[1772583535402,2.36422295,1985.2,1984.5,2.80307938]
[1772583535795,5.16421751,1985.2,1984.5,2.80307938]
[1772583537421,5.16421751,1985.2,1984.5,4.06279768]
[1772583537915,5.16421751,1985.2,1984.5,4.0628396]
[1772583539711,5.16421751,1985.2,1984.6,2.80307938]
[1772583541723,5.16421751,1985.2,1984.6,4.06275407]
[1772583541890,0.001,1985.1,1984.6,2.80307938]
[1772583542418,0.001,1985.3,1984.6,2.80307938]
[1772583543603,0.001,1985.3,1984.8,2.80307938]
[1772583543938,0.001,1985.3,1984.7,1.25963621]
[1772583543939,0.001,1985.3,1985.0,2.80307938]
[1772583545531,0.001,1985.5,1985.0,2.80307938]
[1772583545701,1.2587483,1986.1,1985.2,2.80307938]
[1772583546106,0.001,1986.0,1985.2,2.80307938]
[1772583548218,0.001,1986.0,1985.4,2.80307938]
[1772583548443,0.001,1986.0,1985.6,2.80307938]
[1772583549938,0.002,1986.3,1985.6,2.80307938]
[1772583550145,0.002,1986.3,1985.8,2.80307938]
[1772583553015,0.002,1986.3,1985.9,4.06195444]
[1772583553928,0.001,1986.2,1985.9,4.06195444]
[1772583556043,2.80099456,1986.2,1985.5,5.90415874]
[1772583556337,2.80099456,1986.2,1985.6,2.80307938]
[1772583557807,0.001,1986.2,1985.8,2.80307938]
[1772583559537,0.002,1986.3,1985.9,2.68503922]
[1772583559845,5.0327389,1987.0,1986.3,2.68503922]
[1772583560145,5.0327389,1987.0,1986.1,5.0347397]
[1772583560146,2.79605966,1986.9,1986.1,3.94373782]
[1772583560441,2.79605966,1986.9,1986.0,6.8731337]
[1772583560442,2.79605966,1986.8,1986.2,1.838]
[1772583560813,7.82879856,1987.0,1986.3,2.68503922]
[1772583561309,3.66622672,1987.5,1986.2,1.838]
[1772583561310,1.2578263,1987.6,1986.5,2.68503922]
[1772583561516,4.92196994,1987.7,1986.8,2.68503922]
[1772583561717,4.92196994,1987.7,1987.0,2.68503922]
[1772583561938,4.92196994,1987.7,1987.0,3.94318813]
[1772583563040,4.92196994,1987.7,1987.1,2.68503922]
[1772583564518,0.86816281,1987.7,1987.2,2.68503922]
[1772583566046,0.86816281,1987.7,1987.4,2.68503922]
[1772583566252,0.47732033,1987.5,1986.8,2.68503922]
[1772583566815,1.25779834,1987.6,1986.9,1.831]
[1772583567068,2.12595,1987.7,1986.9,1.831]
[1772583567366,2.12595,1987.7,1986.9,2.331]
[1772583567712,0.86816281,1987.7,1987.1,1.64522672]
[1772583567924,0.002,1987.6,1987.1,1.64522672]
[1772583568138,0.002,1987.6,1987.3,2.68503922]
[1772583570748,0.002,1987.6,1987.0,2.68503922]
[1772583570961,0.002,1987.6,1986.6,1.835]
[1772583570962,2.42180966,1987.3,1986.6,1.835]
[1772583571257,0.77658294,1987.2,1986.5,1.827]
[1772583572349,1.25811484,1987.1,1986.5,1.827]
[1772583572755,1.25811484,1987.1,1985.9,0.001]
[1772583572756,0.82729275,1986.5,1985.9,0.001]
[1772583572960,1.64522672,1986.2,1985.6,0.001]
[1772583574126,2.47111235,1986.2,1985.6,0.001]
[1772583574526,1.2587483,1986.1,1985.6,0.001]
[1772583576555,1.2587483,1986.1,1985.8,0.002]
[1772583577057,1.25855819,1986.4,1985.8,0.002]
[1772583579027,1.25855819,1986.4,1985.8,2.68703922]
[1772583579561,1.25836814,1986.7,1985.8,2.68703922]
[1772583581544,5.03347259,1986.9,1986.0,2.68503922]
[1772583582150,0.002,1986.1,1986.0,2.68503922]
[1772583582662,0.002,1986.4,1986.0,2.68503922]
[1772583582866,0.001,1986.4,1986.0,2.68503922]
[1772583584163,0.001,1986.4,1986.2,2.68503922]
[1772583585161,0.001,1986.4,1986.3,1.837]
[1772583587061,0.76879387,1986.4,1985.8,0.001]
[1772583587262,0.001,1986.4,1985.8,2.68703922]
[1772583587575,0.001,1986.4,1985.9,1.835]
[1772583587774,0.001,1986.4,1986.0,2.68503922]
[1772583591797,0.001,1986.4,1986.1,2.82569028]
[1772583593472,0.001,1986.4,1986.2,0.002]
[1772583593677,0.001,1986.4,1985.9,9.695937]
[1772583593969,0.001,1986.4,1986.0,2.82569028]
[1772583595169,0.002,1986.3,1986.0,2.82569028]
[1772583595353,0.002,1986.3,1986.0,4.08450005]
[1772583595558,0.002,1986.3,1986.0,4.08450125]
[1772583596560,0.002,1986.3,1986.1,2.82669028]
[1772583596761,0.002,1986.3,1986.1,2.82569028]
[1772583597278,0.002,1986.3,1986.2,0.002]
[1772583597481,0.002,1986.3,1986.2,1.842]
[1772583598479,0.002,1986.3,1986.2,4.66769028]
[1772583598661,1.25840585,1986.7,1986.3,2.82569028]
[1772583600182,5.03342896,1986.8,1986.3,2.82569028]
[1772583600391,3.47068824,1986.7,1986.3,2.82569028]
[1772583600577,5.03342896,1986.8,1986.3,2.82569028]
[1772583600891,3.47068055,1986.7,1986.3,2.82569028]
[1772583601179,5.03342896,1986.8,1986.3,2.82569028]
[1772583601380,3.47182053,1986.7,1986.4,0.002]
[1772583601567,5.03342896,1986.8,1986.4,0.002]
[1772583601772,3.47181542,1986.7,1986.4,0.002]
[1772583601973,5.03342896,1986.8,1986.4,0.002]
[1772583602171,5.03342896,1986.8,1985.9,1.841]
[1772583602172,2.73348281,1986.4,1985.9,1.841]
[1772583602376,2.73348281,1986.4,1986.0,0.002]
[1772583603178,2.73348281,1986.4,1985.9,1.841]
[1772583603381,2.73348281,1986.4,1985.9,1.843]
[1772583604465,1.25862155,1986.3,1985.9,1.843]
[1772583604795,1.25862155,1986.3,1986.0,2.82569028]
[1772583604991,1.25862155,1986.3,1985.6,0.001]
[1772583604992,2.73348281,1986.0,1985.6,0.001]
[1772583605291,2.30153215,1986.1,1985.6,0.003]
[1772583605292,2.73348281,1985.8,1985.6,0.003]
[1772583606177,2.73348281,1986.0,1985.6,0.003]
[1772583606374,0.47010455,1985.9,1985.6,0.003]
[1772583606593,2.73348281,1986.0,1985.6,0.003]
[1772583606820,1.25893846,1985.8,1985.6,0.003]
[1772583608564,1.25893846,1985.8,1985.7,0.001]
[1772583608769,5.03559402,1985.9,1985.7,0.001]
[1772583610897,2.73348281,1985.8,1985.7,0.001]
[1772583611099,2.73348281,1985.8,1985.3,1.831]
[1772583612800,1.25900186,1985.7,1985.3,1.832]
[1772583612981,1.25900186,1985.7,1985.2,2.82569028]
[1772583613302,1.25900186,1985.7,1985.3,1.832]
[1772583614199,1.25900186,1985.7,1985.2,4.65769028]
[1772583614501,3.99248467,1985.7,1985.2,4.65769028]
[1772583615094,1.25880451,1986.1,1985.3,2.82569028]
[1772583615417,3.99221029,1986.2,1985.3,2.82569028]
[1772583615627,2.73348281,1985.4,1984.5,0.0011]
[1772583615777,2.30153215,1985.5,1984.5,0.0011]
[1772583615778,2.73348281,1985.2,1984.5,0.0011]
[1772583615975,2.73348281,1985.0,1984.5,0.0011]
[1772583617040,2.73348281,1984.8,1984.5,0.0011]
[1772583618521,1.25950929,1984.9,1984.5,0.0011]
[1772583618715,7.90578551,1985.2,1984.5,0.0011]
[1772583618916,7.90578551,1985.2,1984.5,2.86956722]
[1772583619117,7.90578551,1985.2,1984.5,4.12929061]
[1772583619819,7.90578551,1985.2,1984.5,2.86956722]
[1772583620002,7.90578551,1985.2,1984.5,4.12932561]
[1772583620198,4.12777878,1985.2,1984.6,3.0320355]
[1772583620615,4.12777878,1985.2,1984.7,1.8331]
[1772583621024,2.93537195,1985.1,1984.7,0.0011]
[1772583621325,2.93537195,1984.9,1984.7,0.0011]
[1772583622526,2.93537195,1984.9,1984.8,0.0011]
[1772583623219,4.19488124,1984.9,1984.8,0.0011]
[1772583632511,1.25950929,1984.9,1984.7,0.0011]
[1772583633032,4.19488124,1984.9,1984.7,0.0011]
[1772583633738,2.93537195,1984.7,1984.3,0.0011]
[1772583634809,2.93537195,1984.7,1984.5,0.0011]
[1772583635235,1.25969968,1984.6,1984.5,0.0011]
[1772583635734,4.19507163,1984.6,1984.5,0.0011]
[1772583639748,1.25969968,1984.6,1984.5,0.0011]
[1772583640747,1.25965588,1984.7,1984.5,0.0011]
[1772583640918,7.97384804,1984.8,1984.5,0.0011]
[1772583641251,0.46928629,1984.7,1984.5,0.0011]
[1772583641450,7.97384804,1984.8,1984.5,0.0011]
[1772583641816,5.03847609,1984.8,1984.5,0.0011]
[1772583642047,5.03847609,1984.8,1984.5,3.0331355]
[1772583642256,0.46950058,1984.7,1984.4,2.46410673]
[1772583642464,5.03847609,1984.8,1984.4,2.46410673]
[1772583643315,4.1949447,1984.9,1984.4,5.54593171]
[1772583643514,0.46979359,1984.8,1984.4,4.28610673]
[1772583643736,4.1949447,1984.9,1984.4,4.28610673]
[1772583643939,4.1949447,1984.9,1984.5,2.54422854]
[1772583643940,1.25957275,1984.9,1984.5,2.54422854]
[1772583645247,0.47075337,1984.8,1984.5,2.54422854]
[1772583645427,7.97319851,1985.0,1984.5,3.80398432]
[1772583645627,3.48377063,1984.9,1984.5,2.54422854]
[1772583645822,0.47077238,1984.8,1984.5,2.54422854]
[1772583646022,0.47074723,1984.7,1984.5,1.821]
[1772583646230,2.93537195,1984.8,1984.4,1.821]
[1772583646430,0.4708245,1984.7,1984.4,1.821]
[1772583646746,2.93537195,1984.8,1984.4,1.821]
[1772583646927,0.47082595,1984.7,1984.5,0.0011]
[1772583647240,2.93637195,1984.8,1984.5,0.0011]
[1772583647443,2.93637195,1984.8,1984.6,2.53187026]
[1772583647444,0.37343381,1984.7,1984.6,2.53187026]
[1772583647655,7.44440325,1985.1,1984.7,2.53187026]
[1772583647656,0.001,1985.1,1984.7,2.53187026]
[1772583647817,3.01357102,1985.0,1984.7,2.53187026]
[1772583648246,0.001,1985.1,1984.7,2.53187026]
[1772583648449,3.0143134,1985.1,1984.7,2.53187026]
[1772583648953,4.27371341,1985.1,1984.7,2.53187026]
[1772583649156,1.26040001,1985.1,1984.7,2.53187026]
[1772583649716,0.001,1985.1,1984.8,2.60470849]
[1772583650521,3.01324834,1985.1,1984.8,2.60470849]
[1772583651656,3.01324834,1985.1,1984.8,3.86424922]
[1772583651825,0.001,1985.1,1984.9,2.5961539]
[1772583652477,2.97898122,1984.9,1983.4,5.98068118]
[1772583652760,6.6270643,1985.0,1983.0,1.8201]
[1772583652761,2.97898122,1983.6,1983.0,1.8201]
[1772583652962,2.30153215,1983.7,1983.0,1.8201]
[1772583652963,2.97898122,1983.4,1983.0,1.8201]
[1772583653439,2.97898122,1983.7,1983.0,1.8201]
[1772583653640,3.00240218,1983.6,1983.0,1.8201]
[1772583653839,1.26039828,1983.5,1983.0,1.8201]
[1772583654420,1.26039828,1983.5,1983.0,0.0011]
[1772583654724,1.26039828,1983.5,1983.1,1.822]
[1772583655666,2.97898122,1983.6,1983.1,1.822]
[1772583656070,2.97898122,1983.6,1983.0,0.0011]
[1772583658061,2.97898122,1983.4,1983.0,0.0011]
[1772583659048,2.97898122,1983.4,1983.2,0.0011]
[1772583660298,1.26052538,1983.3,1983.2,0.0011]
[1772583661393,4.2391889,1983.8,1983.2,0.0011]
[1772583661687,4.2391889,1983.8,1983.2,2.73410574]
[1772583662051,1.26020768,1983.8,1983.2,2.73410574]
[1772583662349,1.26008064,1984.0,1983.4,2.73300574]
[1772583663180,5.04018115,1984.1,1983.4,2.73300574]
[1772583663181,1.25993298,1984.3,1983.5,2.72837752]
[1772583663384,2.97898122,1984.2,1983.5,1.828]
[1772583663947,2.97898122,1984.2,1983.3,2.72837752]
[1772583664148,2.97898122,1984.2,1983.4,1.828]
[1772583664349,4.23899835,1984.1,1983.4,1.828]
[1772583664549,4.23899835,1984.1,1983.4,3.08845547]
[1772583665149,4.23899835,1984.1,1983.4,5.80760271]
[1772583667564,4.23880786,1984.4,1983.5,2.70996016]
[1772583668558,4.23880786,1984.4,1983.7,2.7053788]
[1772583670374,5.88635772,1984.4,1983.7,2.7053788]
[1772583670697,2.97898122,1984.3,1983.8,1.828]
[1772583671262,0.001,1984.2,1983.8,1.828]
[1772583671592,0.001,1984.2,1983.8,3.08820449]
[1772583671892,0.001,1984.2,1983.8,4.51515271]
[1772583672089,0.001,1984.2,1983.8,5.77535323]
[1772583672291,1.2598068,1984.5,1983.9,2.68715271]
[1772583673366,4.23864282,1984.7,1984.1,2.681614]
[1772583675696,4.238619,1984.7,1984.1,3.94162766]
[1772583676570,4.238619,1984.7,1984.1,2.681614]
[1772583678894,2.87436248,1984.6,1984.1,2.681614]
[1772583680088,1.25976316,1984.5,1984.1,2.681614]
[1772583681693,1.25976316,1984.5,1984.1,3.9416303]
[1772583682001,1.25976316,1984.5,1984.1,2.681614]
[1772583682872,1.25976316,1984.5,1984.2,0.0011]
[1772583683365,4.135105,1984.6,1984.2,0.0011]
[1772583684085,4.135105,1984.6,1984.2,2.63418935]
[1772583687406,4.135105,1984.6,1984.3,1.826]
[1772583687605,1.26074252,1984.6,1984.3,1.826]
[1772583688390,0.46953296,1984.5,1984.3,1.826]
[1772583688593,1.26074252,1984.6,1984.3,1.826]
[1772583689300,0.46999572,1984.5,1984.3,1.826]
[1772583689510,1.26074252,1984.6,1984.3,1.826]
[1772583689676,3.51636006,1984.5,1984.3,1.826]
[1772583689882,3.04635246,1984.5,1984.3,1.826]
[1772583692011,4.30612806,1984.5,1984.3,1.826]
[1772583692211,0.47020686,1984.4,1984.3,1.826]
[1772583692415,0.47020686,1984.4,1983.0,0.0011]
[1772583692416,3.04635246,1984.1,1983.0,0.0011]
[1772583692600,3.29509972,1984.2,1982.7,1.824]
[1772583692601,3.04635246,1983.2,1982.7,1.824]
[1772583692917,1.64754986,1983.3,1982.9,0.068836]
[1772583692918,6.52464581,1983.1,1982.9,0.068836]
[1772583693089,0.47020686,1983.0,1982.9,0.068836]
[1772583693295,3.04635246,1983.1,1982.9,0.068836]
[1772583694001,4.30700896,1983.1,1982.9,0.068836]
[1772583695116,4.30700896,1983.1,1983.0,0.0011]
[1772583695618,8.08771828,1983.6,1983.0,0.0011]
[1772583695817,3.46440639,1983.5,1983.0,0.0011]
[1772583696006,4.72486822,1983.4,1983.0,0.0011]
[1772583696210,0.46816659,1983.3,1982.7,1.8251]
[1772583696417,2.90801169,1983.4,1982.7,1.8251]
[1772583696620,3.46208431,1983.3,1982.7,1.8251]
[1772583696802,0.46785225,1983.2,1982.7,1.8251]
[1772583696998,2.90801169,1983.4,1982.7,1.8251]
[1772583697199,3.04635246,1983.2,1982.7,1.8251]
[1772583698005,4.30700497,1983.1,1982.7,1.8251]
[1772583698207,3.04635246,1983.1,1982.7,1.8251]
[1772583699926,3.04635246,1983.1,1982.7,3.08600354]
[1772583700230,3.04635246,1983.6,1982.8,2.71258113]
[1772583702128,4.30673088,1983.6,1983.0,2.7005104]
[1772583703328,1.26033926,1983.6,1983.0,2.7005104]
[1772583704032,3.04635246,1983.6,1982.8,2.68572907]
[1772583704206,3.04635246,1983.4,1982.9,1.822]
[1772583705033,3.04635246,1983.4,1982.9,4.50041878]
[1772583706722,4.30683561,1983.4,1983.0,1.26071608]
[1772583707243,4.30683561,1983.4,1982.9,5.76114676]
[1772583707442,4.30683561,1983.4,1982.9,4.50041878]
[1772583707608,4.30683561,1983.4,1983.0,0.0011]
[1772583707798,0.001,1983.3,1983.0,0.0011]
[1772583708432,0.001,1983.3,1983.0,2.65070441]
[1772583708703,1.26033933,1983.6,1983.1,2.64860441]
[1772583708924,1.26033933,1983.6,1983.2,1.26058894]
[1772583709430,3.08173241,1983.9,1983.3,2.64625459]
[1772583710610,3.08173241,1983.9,1983.4,1.822]
[1772583710939,3.08173241,1983.4,1983.3,1.822]
[1772583711236,3.08173241,1983.4,1983.2,1.822]
[1772583713210,4.342245,1983.4,1983.2,1.822]
[1772583713518,4.342245,1983.4,1983.2,1.821]
[1772583715716,3.08173241,1983.4,1983.2,1.821]
[1772583716119,4.34212589,1983.6,1983.2,5.8882931]
[1772583716319,1.26031654,1983.7,1983.2,5.8882931]
[1772583716519,1.26031654,1983.7,1983.3,2.80670671]
[1772583718847,4.34204895,1983.7,1983.4,1.82]
[1772583720450,1.72885784,1983.6,1983.4,1.82]
[1772583720649,4.34209094,1983.6,1983.4,1.82]
[1772583721319,3.08173241,1983.6,1983.4,1.82]
[1772583721531,1.26024029,1983.8,1983.4,5.85080083]
[1772583721730,3.47009695,1983.7,1983.4,5.85080083]
[1772583721930,0.46895105,1983.6,1983.4,5.85080083]
[1772583722228,6.74709485,1984.2,1983.7,2.7631456]
[1772583722534,0.46967564,1984.1,1983.7,2.7631456]
[1772583722730,3.55140805,1984.0,1983.6,1.26033474]
[1772583722929,3.55140805,1983.9,1983.7,1.818]
[1772583723156,3.08173241,1983.9,1983.7,1.818]
[1772583723754,3.08173241,1983.9,1983.6,1.818]
[1772583724055,3.08173241,1984.1,1983.6,1.818]
[1772583724354,0.46942873,1984.0,1983.6,5.82722847]
[1772583724529,4.34180141,1984.1,1983.6,5.82722847]